bitfinex/quotes_SOLUSD_20260108
["timestamp","ask_amount","ask_price","bid_price","bid_amount"]
[1767868080445,0.71229936,134.81,134.78,3.53599076]
[1767868080650,0.68229937,134.81,134.79,0.71541576]
[1767868081261,0.68229937,134.81,134.78,3.53599076]
[1767868081666,7.41729983,134.82,134.79,0.71541576]
[1767868082654,8.13882363,134.82,134.79,0.71541576]
[1767868082973,0.7215238,134.81,134.79,0.71745208]
[1767868083353,0.7215238,134.81,134.79,3.53802708]
[1767868083553,0.71969443,134.82,134.79,3.53802708]
[1767868084080,0.71969443,134.82,134.79,0.71745208]
[1767868084278,0.71969443,134.82,134.79,3.53802708]
[1767868084577,8.13699533,134.82,134.79,3.53802708]
[1767868085382,8.13699533,134.82,134.79,0.71745208]
[1767868087982,0.71969443,134.81,134.78,0.71590057]
[1767868093692,0.71969443,134.81,134.79,0.71590057]
[1767868093991,0.71969443,134.82,134.79,0.71590057]
[1767868094790,0.71969443,134.81,134.78,2.820575]
[1767868094965,0.71969443,134.81,134.78,3.53647557]
[1767868096103,0.71969443,134.81,134.79,0.71590057]
[1767868096600,0.71969443,134.81,134.78,8.13531543]
[1767868096771,0.71969443,134.81,134.78,10.95589043]
[1767868098692,0.71969443,134.81,134.78,3.53647557]
[1767868101691,0.71969443,134.81,134.78,0.71590057]
[1767868101913,0.71969443,134.81,134.78,3.53647557]
[1767868102693,0.71969443,134.81,134.79,0.71590057]
[1767868113805,8.13757173,134.81,134.78,0.72244932]
[1767868113981,0.71969443,134.81,134.78,5.13034849]
[1767868115388,0.66910597,134.82,134.79,0.72244932]
[1767868115591,0.66910597,134.82,134.79,5.13034849]
[1767868117613,0.66910597,134.83,134.8,4.40789917]
[1767868117899,0.66910597,134.83,134.79,12.54929373]
[1767868119110,0.66910597,134.82,134.79,5.13034849]
[1767868120607,0.66910597,134.82,134.79,12.5492096]
[1767868121307,0.66910597,134.82,134.79,4.40789917]
[1767868121603,0.66910597,134.82,134.78,12.54977796]
[1767868125904,0.66910597,134.8,134.77,5.33034849]
[1767868126101,0.66910597,134.8,134.78,4.40789917]
[1767868126318,0.66910597,134.8,134.78,5.13034849]
[1767868128225,0.66910597,134.8,134.78,0.72244932]
[1767868128405,0.66910597,134.8,134.78,5.13034849]
[1767868133426,0.66910597,134.81,134.78,5.13034849]
[1767868134313,0.66910597,134.81,134.78,12.54979666]
[1767868135418,0.66910597,134.81,134.78,8.14189749]
[1767868135721,0.66910597,134.81,134.78,12.54979666]
[1767868136625,0.66910597,134.81,134.78,5.13034849]
[1767868138031,0.66910597,134.81,134.78,12.54978755]
[1767868139725,0.66910597,134.81,134.78,5.13034849]
[1767868140521,0.66910597,134.81,134.78,0.72244932]
[1767868145942,0.66910597,134.81,134.78,8.14191852]
[1767868147216,0.69412121,134.82,134.79,0.69026496]
[1767868152637,18.82519475,134.84,134.8,0.69026496]
[1767868152638,13.54,134.84,134.8,0.69026496]
[1767868152820,13.54,134.84,134.81,4.40789917]
[1767868153020,13.54,134.84,134.81,0.69026496]
[1767868153236,14.23412121,134.84,134.81,0.69026496]
[1767868153621,0.69412121,134.83,134.8,4.40789917]
[1767868153824,0.69412121,134.83,134.79,8.10898876]
[1767868154026,0.69412121,134.83,134.8,4.40789917]
[1767868156345,0.69412121,134.83,134.8,12.51645823]
[1767868156546,0.69412121,134.83,134.8,8.10855906]
[1767868156841,0.69412121,134.83,134.81,0.69026496]
[1767868157442,14.23412121,134.84,134.81,0.69026496]
[1767868158150,0.69412121,134.83,134.8,11.82619327]
[1767868158446,0.69412121,134.83,134.81,0.69026496]
[1767868162649,14.23412121,134.84,134.81,0.69026496]
[1767868163647,0.69412121,134.86,134.83,0.69026496]
[1767868163853,0.69412121,134.86,134.83,4.40789917]
[1767868164242,0.69412121,134.86,134.81,8.10810522]
[1767868164449,0.69412121,134.86,134.83,0.69026496]
[1767868164951,3.51368149,134.86,134.83,0.69026496]
[1767868165451,10.92885503,134.86,134.83,0.69026496]
[1767868168053,10.23473382,134.86,134.83,0.69026496]
[1767868168348,14.23412121,134.88,134.85,0.69026496]
[1767868168944,13.54,134.88,134.85,0.69026496]
[1767868169850,0.69412121,134.88,134.85,0.69026496]
[1767868170634,8.10725993,134.9,134.87,0.69026496]
[1767868170837,8.10725993,134.9,134.87,0.6629257]
[1767868171039,8.10725993,134.9,134.87,0.63026496]
[1767868171959,0.69412121,134.89,134.87,0.63026496]
[1767868172341,0.69412121,134.89,134.85,7.41535636]
[1767868172546,0.69412121,134.89,134.86,2.81956028]
[1767868174471,0.69412121,134.89,134.86,3.5384054]
[1767868175069,0.66777341,134.88,134.84,0.71884512]
[1767868175252,3.48733369,134.88,134.84,0.71884512]
[1767868176065,0.66777341,134.88,134.84,0.71884512]
[1767868176366,0.66777341,134.87,134.84,0.71884512]
[1767868176735,0.66777341,134.86,134.83,0.71884512]
[1767868176941,0.66777341,134.86,134.83,3.5384054]
[1767868177149,0.66777341,134.86,134.84,0.71884512]
[1767868178263,0.66777341,134.85,134.82,0.71884512]
[1767868178573,0.66777341,134.84,134.81,0.71884512]
[1767868181267,0.66777341,134.84,134.8,10.23770572]
[1767868181268,0.66777341,134.83,134.8,0.71884512]
[1767868181867,0.66777341,134.83,134.79,0.71884512]
[1767868182056,8.08458708,134.83,134.79,3.5384054]
[1767868182258,0.66777341,134.82,134.79,3.5384054]
[1767868182966,0.66777341,134.82,134.79,10.95730817]
[1767868183166,0.66777341,134.82,134.8,0.71884512]
[1767868185164,8.08454054,134.83,134.8,0.71884512]
[1767868186262,0.66777341,134.83,134.8,10.9564516]
[1767868186459,14.20777341,134.85,134.82,0.71884512]
[1767868187265,0.66777341,134.86,134.82,3.5384054]
[1767868187579,8.08267517,134.87,134.83,0.71884512]
[1767868187774,0.66777341,134.86,134.83,0.71884512]
[1767868188484,21.90634675,134.88,134.84,0.71884512]
[1767868188782,0.66777341,134.89,134.86,0.71884512]
[1767868189157,0.66777341,134.89,134.87,2.81956028]
[1767868191782,0.56777341,134.88,134.83,0.71884512]
[1767868191953,0.099,134.87,134.83,3.5384054]
[1767868193681,7.51354734,134.87,134.83,3.5384054]
[1767868194498,0.56777341,134.89,134.86,2.81956028]
[1767868195368,0.099,134.88,134.85,2.81956028]
[1767868195565,0.099,134.88,134.84,2.81956028]
[1767868196088,0.099,134.88,134.84,3.5384054]
[1767868196788,0.099,134.88,134.84,2.81956028]
[1767868197083,0.099,134.88,134.83,3.5384054]
[1767868197771,0.10364086,134.86,134.82,3.5384054]
[1767868198480,0.10364086,134.86,134.81,3.5384054]
[1767868198857,0.55849122,134.85,134.81,3.5384054]
[1767868201085,7.97445156,134.85,134.81,3.5384054]
[1767868201286,0.10818936,134.84,134.81,3.5384054]
[1767868202387,0.56777341,134.85,134.81,10.95612105]
[1767868202682,0.56777341,134.85,134.82,0.68427577]
[1767868203493,0.56777341,134.85,134.81,10.9215517]
[1767868203679,7.98347807,134.85,134.81,3.50383605]
[1767868203991,0.56777341,134.85,134.82,2.81956028]
[1767868204292,7.98345249,134.85,134.81,10.92162812]
[1767868204490,7.9534525,134.85,134.81,10.92162812]
[1767868205591,7.9534525,134.85,134.82,0.68302312]
[1767868205795,0.53777342,134.85,134.82,0.68302312]
[1767868208397,7.95352839,134.85,134.82,0.68302312]
[1767868209297,0.53777342,134.85,134.82,0.68302312]
[1767868211573,0.50777343,134.85,134.82,0.68302312]
[1767868212279,10.23527535,134.85,134.8,0.68302312]
[1767868212587,10.23527535,134.85,134.8,3.5025834]
[1767868212893,7.41571507,134.85,134.8,3.5025834]
[1767868213394,7.41571507,134.85,134.81,0.68302312]
[1767868213583,0.50777343,134.84,134.81,0.68302312]
[1767868213791,0.50777343,134.84,134.81,3.5025834]
[1767868216087,8.20688449,134.87,134.84,0.68302312]
[1767868216292,0.50777343,134.87,134.84,0.68302312]
[1767868216606,0.50777343,134.87,134.83,2.81956028]
[1767868216783,7.92234471,134.87,134.83,3.5025834]
[1767868217181,0.099,134.86,134.83,3.5025834]
[1767868217476,6.2406772,134.91,134.86,0.68302312]
[1767868217697,14.04777343,134.92,134.88,3.5025834]
[1767868217893,13.54,134.92,134.89,0.68302312]
[1767868218083,13.54,134.92,134.89,3.5025834]
[1767868218392,0.50777343,134.93,134.9,2.81956028]
[1767868219790,7.91907506,134.93,134.89,3.5025834]
[1767868222037,0.099,134.92,134.89,0.68302312]
[1767868222210,16.35956028,134.91,134.86,0.68302312]
[1767868222410,2.81956028,134.9,134.85,0.68302312]
[1767868222707,2.81956028,134.9,134.86,0.68302312]
[1767868222905,2.81956028,134.9,134.85,3.5025834]
[1767868223107,16.35956028,134.91,134.86,0.68302312]
[1767868223606,16.32956029,134.91,134.86,3.5025834]
[1767868224010,13.51000001,134.91,134.87,0.68302312]
[1767868224210,7.41289844,134.9,134.87,0.68302312]
[1767868224808,21.40036851,134.91,134.87,3.5025834]
[1767868225108,0.099,134.9,134.87,3.5025834]
[1767868226494,0.099,134.9,134.87,5.08542709]
[1767868227313,21.40036851,134.91,134.87,5.08542709]
[1767868227909,21.40036851,134.91,134.87,0.68302312]
[1767868229201,7.8903685,134.91,134.87,0.68302312]
[1767868229500,7.8903685,134.91,134.88,0.68302312]
[1767868231822,7.83036852,134.91,134.88,0.68302312]
[1767868232037,0.099,134.9,134.87,0.68302312]
[1767868232424,0.4739857,134.89,134.85,5.12465735]
[1767868232595,0.10274986,134.88,134.85,0.72225338]
[1767868234425,7.89122143,134.89,134.85,0.72225338]
[1767868234728,7.41344799,134.89,134.86,0.72225338]
[1767868234901,7.51244799,134.89,134.86,0.72225338]
[1767868235907,7.41344799,134.89,134.86,0.72225338]
[1767868236432,21.4309095,134.9,134.87,0.72225338]
[1767868237119,7.41272284,134.91,134.88,0.72225338]
[1767868237914,7.51172284,134.91,134.88,0.72225338]
[1767868241323,0.10274986,134.89,134.85,0.72225338]
[1767868242221,4.50515383,134.89,134.85,0.72225338]
[1767868242716,11.9187832,134.89,134.85,0.72225338]
[1767868243021,7.51637923,134.89,134.85,0.72225338]
[1767868246018,7.51637923,134.89,134.86,0.72225338]
[1767868247225,0.10274986,134.89,134.86,0.72225338]
[1767868249926,0.10274986,134.89,134.85,4.40240397]
[1767868250227,0.10274986,134.89,134.85,5.12465735]
[1767868250827,0.10274986,134.89,134.86,0.72225338]
[1767868257930,7.51619785,134.89,134.85,0.72225338]
[1767868258113,0.47027334,134.88,134.85,0.72225338]
[1767868258431,0.44027335,134.88,134.85,0.72225338]
[1767868259133,0.44027335,134.88,134.85,5.12465735]
[1767868260127,7.41344799,134.89,134.86,0.72225338]
[1767868260935,0.099,134.89,134.86,0.72225338]
[1767868263815,26.22946768,134.9,134.85,4.40240397]
[1767868263816,0.44428571,134.88,134.85,0.68739454]
[1767868265164,0.10245286,134.87,134.83,0.68739454]
[1767868265518,7.41509713,134.86,134.83,0.68739454]
[1767868265926,7.41509713,134.86,134.84,0.68739454]
[1767868267344,7.5170002,134.87,134.84,0.68739454]
[1767868267949,26.05336855,134.87,134.84,0.68739454]
[1767868269148,7.5170002,134.87,134.84,0.68739454]
[1767868271051,0.44086738,134.86,134.83,0.68739454]
[1767868272043,7.86232079,134.87,134.83,5.08979851]
[1767868272445,7.86232079,134.87,134.84,0.68739454]
[1767868273849,0.099,134.86,134.83,5.08979851]
[1767868274143,7.51354734,134.87,134.84,0.68739454]
[1767868283647,7.48354735,134.87,134.84,0.68739454]
[1767868286964,6.22280111,134.9,134.85,0.68739454]
[1767868287145,0.44777345,134.91,134.88,0.68739454]
[1767868287460,0.73209659,134.91,134.88,0.68739454]
[1767868287849,7.41293377,134.9,134.88,0.68739454]
[1767868289363,0.10245286,134.88,134.86,0.68739454]
[1767868289657,3.50298105,134.87,134.82,10.23474459]
[1767868290556,3.50298105,134.87,134.81,10.23519702]
[1767868291663,7.41509713,134.86,134.82,0.68739454]
[1767868293159,7.41509713,134.86,134.82,3.50497662]
[1767868293466,7.41509713,134.86,134.83,0.69457807]
[1767868294466,0.82756054,134.87,134.83,0.69457807]
[1767868295162,0.82756054,134.87,134.83,8.1113019]
[1767868295467,8.24219359,134.87,134.83,0.69457807]
[1767868298853,0.68427581,134.87,134.84,0.41912899]
[1767868302580,21.6379496,134.89,134.85,0.69457807]
[1767868303178,0.68427581,134.88,134.85,0.69457807]
[1767868305083,0.68427581,134.88,134.85,3.51216015]
[1767868307288,21.6379496,134.89,134.86,0.69457807]
[1767868307481,8.0979496,134.89,134.86,3.51216015]
[1767868307788,8.0979496,134.89,134.86,0.69457807]
[1767868309190,7.69745837,134.9,134.87,0.69457807]
[1767868309483,0.68427581,134.89,134.86,3.51216015]
[1767868311884,8.09814323,134.89,134.86,0.69457807]
[1767868319684,0.68427581,134.88,134.85,0.69457807]
[1767868321480,0.68427581,134.89,134.86,0.69457807]
[1767868321998,0.68427581,134.89,134.86,3.51216015]
[1767868322471,0.68427581,134.89,134.86,0.69457807]
[1767868322770,0.68427581,134.89,134.86,3.51216015]
[1767868323194,0.68427581,134.89,134.86,0.69457807]
[1767868323497,0.68703756,134.88,134.86,0.69457807]
[1767868324396,0.68703756,134.88,134.85,3.47099013]
[1767868324694,0.68703756,134.87,134.83,0.65340805]
[1767868324892,0.68703756,134.86,134.83,0.65340805]
[1767868325291,0.68703756,134.86,134.82,0.65340805]
[1767868325486,0.68703756,134.83,134.8,0.65340805]
[1767868325689,2.81758208,134.84,134.8,0.65340805]
[1767868326574,2.81758208,134.83,134.78,0.65340805]
[1767868326782,2.81758208,134.83,134.79,0.65340805]
[1767868327702,3.50461964,134.83,134.79,0.65340805]
[1767868328004,10.92139187,134.83,134.79,0.65340805]
[1767868328697,3.50461964,134.83,134.79,0.65340805]
[1767868328997,0.68703756,134.83,134.8,0.65340805]
[1767868330298,0.68703756,134.83,134.8,3.47099013]
[1767868330498,8.10384265,134.83,134.8,3.47099013]
[1767868330701,8.10384265,134.83,134.8,0.65340805]
[1767868331306,0.68703756,134.83,134.8,0.65340805]
[1767868331984,8.38771128,134.84,134.8,0.65340805]
[1767868333606,8.10380722,134.83,134.79,3.47099013]
[1767868333786,8.10380722,134.83,134.8,0.65340805]
[1767868338607,0.68703756,134.83,134.8,0.65340805]
[1767868339807,8.1037988,134.83,134.8,0.65340805]
[1767868342225,0.68703756,134.82,134.8,0.65340805]
[1767868344282,8.1037988,134.83,134.8,0.65340805]
[1767868351983,8.10323453,134.84,134.8,0.65340805]
[1767868352180,8.10323453,134.84,134.81,0.66473855]
[1767868352596,12.51061985,134.84,134.81,0.66473855]
[1767868352808,8.10323453,134.84,134.81,0.66473855]
[1767868353378,8.07323454,134.84,134.81,0.66473855]
[1767868356109,0.68718279,134.87,134.84,0.66473855]
[1767868356410,0.68718279,134.88,134.85,0.66473855]
[1767868356582,0.68718279,134.88,134.86,0.66473855]
[1767868357190,7.41365794,134.89,134.86,0.66473855]
[1767868358314,8.10084073,134.89,134.86,0.66473855]
[1767868358508,0.68718279,134.88,134.85,5.07212387]
[1767868361618,8.10122511,134.88,134.85,0.66473855]
[1767868361801,0.68718279,134.87,134.83,0.66473855]
[1767868362412,0.68718279,134.86,134.82,0.66473855]
[1767868362596,8.1028298,134.85,134.82,0.66473855]
[1767868363305,8.1028298,134.85,134.82,5.07212387]
[1767868364298,8.10241042,134.86,134.83,0.66473855]
[1767868364505,21.64199995,134.87,134.84,0.66473855]
[1767868365499,21.64199995,134.87,134.84,5.07212387]
[1767868365700,8.10199995,134.87,134.84,5.07212387]
[1767868367719,8.10131486,134.88,134.85,0.66473855]
[1767868369020,0.68718279,134.85,134.81,0.66473855]
[1767868369216,0.68718279,134.83,134.79,0.66473855]
[1767868369518,0.68718279,134.83,134.8,0.66473855]
[1767868369822,0.68718279,134.83,134.79,0.66473855]
[1767868370419,0.68718279,134.82,134.78,5.07212387]
[1767868371025,8.10449498,134.82,134.78,0.66473855]
[1767868371600,0.68718279,134.81,134.78,0.66473855]
[1767868373817,0.68718279,134.82,134.79,0.66473855]
[1767868374020,8.10473918,134.82,134.79,0.66473855]
[1767868374429,0.68718279,134.79,134.77,0.2]
[1767868374600,4.40738532,134.79,134.77,1e-08]
[1767868374805,17.94738532,134.8,134.77,1e-08]
[1767868375504,13.54,134.8,134.77,1e-08]
[1767868375705,13.54,134.8,134.77,0.66473856]
[1767868376009,25.36494171,134.82,134.78,0.66473855]
[1767868376622,0.68718279,134.81,134.78,0.66473855]
[1767868377021,0.68718279,134.81,134.77,11.8272864]
[1767868377022,0.68718279,134.81,134.77,0.66473856]
[1767868377207,0.68718279,134.81,134.77,12.49214411]
[1767868377820,0.68718279,134.81,134.78,4.40738532]
[1767868382431,0.68718279,134.81,134.78,5.061611]
[1767868383435,20.95755639,134.82,134.79,0.65422568]
[1767868383610,21.61350572,134.82,134.79,5.061611]
[1767868383804,0.65594933,134.81,134.78,5.06659057]
[1767868385431,21.61348884,134.82,134.78,5.06659057]
[1767868386610,8.07332984,134.82,134.79,0.65920525]
[1767868386819,14.48027247,134.83,134.8,0.65920525]
[1767868387822,21.89722988,134.83,134.79,5.06659057]
[1767868388926,0.65594933,134.82,134.79,4.40738532]
[1767868389134,21.89722988,134.83,134.8,0.65920525]
[1767868391218,26.3046152,134.83,134.8,0.65920525]
[1767868391418,0.65594933,134.82,134.78,5.06659057]
[1767868392346,0.65594933,134.82,134.79,0.65920525]
[1767868393851,0.65594933,134.84,134.8,0.65920525]
[1767868394043,0.65594933,134.84,134.82,4.40738532]
[1767868394420,21.2396917,134.86,134.83,4.40738532]
[1767868394725,14.19594933,134.86,134.84,4.40738532]
[1767868395025,21.61119531,134.86,134.84,4.40738532]
[1767868395222,21.61119531,134.86,134.83,0.65920525]
[1767868395223,21.61119531,134.86,134.83,5.06659057]
[1767868395430,21.61119531,134.86,134.83,4.40738532]
[1767868395625,0.65594933,134.85,134.82,0.65920525]
[1767868395830,0.65594933,134.85,134.82,4.40738532]
[1767868396848,8.07165516,134.85,134.82,4.40738532]
[1767868398137,0.65594933,134.85,134.82,4.40738532]
[1767868398334,21.6112336,134.86,134.83,4.40738532]
[1767868398536,21.6112336,134.86,134.84,4.40738532]
[1767868399027,0.28432314,134.87,134.84,5.06659057]
[1767868399028,0.65594933,134.87,134.84,5.06659057]
[1767868399226,14.19594933,134.89,134.86,4.40738532]
[1767868399422,0.65594933,134.88,134.86,4.40738532]
[1767868399634,0.65594933,134.88,134.85,5.06659057]
[1767868400226,8.07007183,134.88,134.85,5.06659057]
[1767868401412,7.4141225,134.88,134.86,0.65920525]
[1767868402634,13.54,134.89,134.87,5.06659057]
[1767868402825,0.28432314,134.9,134.87,5.06659057]
[1767868403225,14.19594933,134.91,134.87,5.06659057]
[1767868404041,21.60849958,134.91,134.87,5.06659057]
[1767868404247,21.60849958,134.91,134.88,4.40738532]
[1767868404421,21.60849958,134.91,134.88,4.34738537]
[1767868407030,21.60849958,134.91,134.88,4.28738542]
[1767868408248,0.65594933,134.9,134.88,4.28738542]
[1767868409136,8.06901487,134.9,134.88,4.28738542]
[1767868410649,8.06901487,134.9,134.88,2.81733338]
[1767868411037,8.06901487,134.9,134.87,3.47653863]
[1767868412133,0.70629282,134.89,134.87,2.81733338]
[1767868412951,8.11935836,134.9,134.87,3.50987539]
[1767868415957,8.11935836,134.9,134.87,3.44987542]
[1767868418150,8.11935836,134.9,134.87,0.69254201]
[1767868419236,8.11935836,134.9,134.87,3.50987539]
[1767868420145,0.70629282,134.9,134.87,3.50987539]
[1767868420350,8.11921509,134.9,134.88,0.69254201]
[1767868420553,8.11921509,134.9,134.87,3.50987539]
[1767868420855,8.11921509,134.9,134.87,3.44987544]
[1767868421039,8.11921509,134.9,134.87,0.69254201]
[1767868421236,8.11921509,134.9,134.87,3.50987539]
[1767868421837,0.70629282,134.89,134.86,3.50987539]
[1767868422955,0.70629282,134.87,134.84,0.69254201]
[1767868425564,8.12096325,134.87,134.84,0.69254201]
[1767868426665,8.12096325,134.87,134.85,0.69254201]
[1767868427340,7.41467043,134.87,134.85,0.69254201]
[1767868429667,8.12096325,134.87,134.84,3.50987539]
[1767868430246,8.12096325,134.87,134.84,0.69254201]
[1767868430544,8.12096325,134.87,134.84,3.50987539]
[1767868430764,0.70629282,134.86,134.82,0.69254201]
[1767868430951,0.70629282,134.86,134.82,3.50987539]
[1767868431268,0.70629282,134.85,134.82,0.69254201]
[1767868432054,14.24629282,134.85,134.82,0.69254201]
[1767868433160,0.70629282,134.84,134.81,0.69254201]
[1767868433645,0.70629282,134.83,134.81,0.69254201]
[1767868433847,0.70629282,134.83,134.8,0.69254201]
[1767868434242,0.70629282,134.83,134.79,0.69254201]
[1767868434243,0.70629282,134.82,134.79,0.69254201]
[1767868435956,21.66390835,134.82,134.79,0.69254201]
[1767868436353,0.70629282,134.81,134.78,2.81733338]
[1767868436648,0.70629282,134.8,134.77,0.69254202]
[1767868438253,14.24629282,134.82,134.79,0.69254201]
[1767868438458,14.24629282,134.82,134.79,3.50987539]
[1767868438661,21.66364646,134.82,134.79,3.50987539]
[1767868438858,21.66364646,134.82,134.79,0.69254201]
[1767868440064,21.66364646,134.82,134.79,3.50987539]
[1767868440266,21.66364646,134.82,134.79,0.69254201]
[1767868440453,21.66364646,134.82,134.79,3.50987539]
[1767868441867,0.70629282,134.81,134.78,0.69254201]
[1767868442048,0.70629282,134.8,134.77,2.81733339]
[1767868442248,0.70629282,134.8,134.77,3.50062767]
[1767868443175,0.67124785,134.81,134.78,0.68329428]
[1767868444067,0.67124785,134.81,134.77,2.81733339]
[1767868444272,0.65977538,134.8,134.77,3.53646197]
[1767868444976,0.65977538,134.79,134.77,1e-08]
[1767868446379,8.07893163,134.79,134.77,1e-08]
[1767868450582,8.36274905,134.8,134.77,0.71912859]
[1767868452361,0.65977538,134.81,134.77,0.71912859]
[1767868452560,7.4180352,134.81,134.79,0.71912858]
[1767868453086,8.07781058,134.81,134.78,3.53646196]
[1767868453273,7.4180352,134.81,134.79,0.71912858]
[1767868453674,8.07781058,134.81,134.78,0.71912858]
[1767868454288,7.4180352,134.81,134.78,0.71912858]
[1767868455587,8.07781058,134.81,134.78,0.71912858]
[1767868458187,10.89514396,134.81,134.78,0.71912858]
[1767868459195,8.07781058,134.81,134.78,0.71912858]
[1767868460584,29.43976231,134.81,134.78,0.71912858]
[1767868460798,29.43976231,134.81,134.77,1e-08]
[1767868460799,3.47710876,134.79,134.77,1e-08]
[1767868460963,3.47710876,134.79,134.75,2.81733338]
[1767868460964,0.65977538,134.78,134.75,0.71912858]
[1767868461583,0.65977538,134.78,134.75,3.53646196]
[1767868462989,8.07966186,134.78,134.75,0.71912858]
[1767868464991,10.89699524,134.78,134.75,0.71912858]
[1767868465188,0.65977538,134.77,134.74,3.53646196]
[1767868465773,0.65977538,134.77,134.75,0.71912858]
[1767868466093,24.43631367,134.79,134.75,0.71912858]
[1767868466994,0.65977538,134.78,134.75,0.71912858]
[1767868468491,8.07946983,134.78,134.75,0.71912858]
[1767868470700,8.07946983,134.78,134.75,3.53646196]
[1767868472489,8.07946983,134.78,134.75,5.12989752]
[1767868473193,8.07946983,134.78,134.75,0.71912858]
[1767868473489,0.65977538,134.78,134.75,5.12989752]
[1767868473695,0.67543591,134.81,134.78,0.66754679]
[1767868473873,8.09237655,134.83,134.8,4.41076894]
[1767868474072,0.67543591,134.82,134.75,25.97398705]
[1767868474293,0.67543591,134.82,134.79,4.41076894]
[1767868474976,8.09315409,134.82,134.79,4.41076894]
[1767868475898,8.09315409,134.82,134.79,5.07831573]
[1767868476781,8.09315409,134.82,134.79,0.66754679]
[1767868478689,12.50321955,134.83,134.79,0.66754679]
[1767868479302,0.67543591,134.82,134.79,0.66754679]
[1767868480589,8.09317184,134.82,134.79,0.66754679]
[1767868481589,8.09317184,134.82,134.79,5.07831573]
[1767868481783,7.41773593,134.82,134.8,0.66754679]
[1767868481984,21.93610145,134.84,134.81,0.66754679]
[1767868482800,21.65177831,134.84,134.82,0.66754679]
[1767868483706,21.65177831,134.84,134.81,5.07831573]
[1767868488210,21.65177831,134.84,134.81,0.66754679]
[1767868488391,21.65177831,134.84,134.81,5.07831573]
[1767868491441,13.56,134.84,134.82,5.07831573]
[1767868492136,8.09134148,134.85,134.82,5.07831573]
[1767868501245,0.28432314,134.89,134.85,0.66754679]
[1767868501427,0.67543591,134.9,134.87,4.41076894]
[1767868501620,0.67543591,134.9,134.88,4.41076894]
[1767868502272,13.54,134.93,134.89,4.41076894]
[1767868502419,0.69084065,134.94,134.92,4.41076894]
[1767868502612,0.69084065,134.94,134.88,4.41076894]
[1767868502841,0.69084065,134.94,134.86,13.54]
[1767868503244,8.10159187,134.94,134.87,7.41454734]
[1767868503449,0.38432314,134.95,134.92,4.41076894]
[1767868503450,8.17641043,134.95,134.92,4.41076894]
[1767868503648,0.76607826,134.95,134.88,4.41076894]
[1767868503853,0.76607826,134.95,134.93,4.41076894]
[1767868504231,7.51027141,134.95,134.88,4.41076894]
[1767868504432,8.17634967,134.95,134.92,4.41076894]
[1767868505251,0.1,134.95,134.93,4.41076894]
[1767868507055,0.76607826,134.95,134.91,4.41076894]
[1767868507236,0.76607826,134.95,134.92,4.41076894]
[1767868507556,0.76607826,134.95,134.89,7.41302503]
[1767868507756,0.76607826,134.95,134.92,4.41076894]
[1767868508132,0.1,134.95,134.94,4.41076894]
[1767868508666,0.1,134.96,134.95,4.41076894]
[1767868508833,0.1,134.96,134.95,4.29076894]
[1767868511244,0.1,134.96,134.95,4.41076894]
[1767868511456,0.76607826,134.96,134.91,7.41218157]
[1767868511761,0.76607826,134.96,134.94,4.41076894]
[1767868512058,0.76607826,134.96,134.93,4.41076894]
[1767868512563,0.66607826,134.95,134.92,4.41076894]
[1767868513143,8.07677931,134.94,134.91,4.41076894]
[1767868513851,0.66607826,134.94,134.89,7.41321977]
[1767868514463,0.66607826,134.94,134.92,4.41076894]
[1767868515441,8.07681369,134.94,134.89,7.41321977]
[1767868515642,8.07681369,134.94,134.91,4.41076894]
[1767868516251,8.07681369,134.94,134.89,7.41321977]
[1767868516452,8.07681369,134.94,134.91,4.41076894]
[1767868519254,0.66607826,134.94,134.91,4.41076894]
[1767868519653,8.07641362,134.95,134.92,4.41076894]
[1767868519853,8.07641362,134.95,134.93,4.41076894]
[1767868520558,8.07641362,134.95,134.89,7.41344799]
[1767868520745,8.07641362,134.95,134.93,4.41076894]
[1767868520947,8.07641362,134.95,134.93,4.35076894]
[1767868521164,8.07641362,134.95,134.89,7.41344799]
[1767868521469,8.07641362,134.95,134.93,4.41076894]
[1767868521969,7.41033536,134.95,134.93,4.41076894]
[1767868522287,0.66607826,134.95,134.92,4.41076894]
[1767868522487,8.17591039,134.96,134.94,4.41076894]
[1767868523048,8.17591039,134.96,134.93,4.41076894]
[1767868523946,0.76607826,134.96,134.93,4.41076894]
[1767868524146,0.76607826,134.96,134.94,4.41076894]
[1767868524376,0.1,134.96,134.94,4.41076894]
[1767868524545,0.1,134.96,134.95,4.41076894]
[1767868525048,0.1,134.97,134.95,4.41076894]
[1767868526853,0.1,134.97,134.96,4.41076894]
[1767868527065,0.1,134.97,134.96,4.35076894]
[1767868527271,0.1,134.97,134.96,4.29076894]
[1767868528776,0.76607826,134.98,134.96,4.29076894]
[1767868529281,0.1,134.98,134.96,4.29076894]
[1767868529482,0.1,134.99,134.97,4.41076894]
[1767868529659,0.1,134.99,134.98,4.41076894]
[1767868529859,0.1,134.99,134.98,4.35076894]
[1767868531391,8.07301042,135.01,134.98,4.35076894]
[1767868532277,0.65591751,135.0,134.98,4.35076894]
[1767868533471,21.60246317,135.02,134.98,4.35076894]
[1767868533666,0.65591751,135.01,134.98,4.35076894]
[1767868533871,0.65591751,135.01,134.99,4.41076894]